[Event "Titled Tuesday Blitz January 10 Late 2023"]
[White "Fernandez Guillen, Ernesto J."]
[Black "Bortnyk, Olexandr"]
[WhiteFideId "3512428"]
[BlackFideId "14120828"]
[WhiteElo "2477"]
[BlackElo "2605"]
[Result "0-1"]
[Round "04"]
[TimeControl "180+2"]
[Date "2023.01.10"]
[WhiteClock "0:00:07"]
[BlackClock "0:00:15"]

1. e4 {[%clk 0:00:00]}  Nf6 {[%clk 0:00:00]} 2. Nc3 {[%clk 0:03:00]}  d5 {[%clk 0:02:59]} 3. exd5 {[%clk 0:03:00]}  Nxd5 {[%clk 0:02:59]} 4. d4 {[%clk 0:03:01]}  g6 {[%clk 0:03:00]} 5. Nf3 {[%clk 0:03:01]}  Nxc3 {[%clk 0:02:59]} 6. bxc3 {[%clk 0:03:00]}  Bg7 {[%clk 0:02:58]} 7. Bd3 {[%clk 0:03:00]}  c5 {[%clk 0:02:59]} 8. h4 {[%clk 0:03:00]}  Nc6 {[%clk 0:02:58]} 9. Be3 {[%clk 0:02:59]}  Bg4 {[%clk 0:02:48]} 10. h5 {[%clk 0:02:56]}  Bxh5 {[%clk 0:02:40]} 11. Rxh5 {[%clk 0:02:50]}  gxh5 {[%clk 0:02:14]} 12. Ng5 {[%clk 0:02:45]}  h6 {[%clk 0:02:15]} 13. Nxf7 {[%clk 0:02:39]}  Kxf7 {[%clk 0:01:50]} 14. Qxh5+ {[%clk 0:02:39]}  Kf8 {[%clk 0:01:51]} 15. Bc4 {[%clk 0:02:38]}  e6 {[%clk 0:01:49]} 16. Bxe6 {[%clk 0:02:09]}  Qf6 {[%clk 0:01:49]} 17. d5 {[%clk 0:02:07]}  Qxc3+ {[%clk 0:01:49]} 18. Ke2 {[%clk 0:01:45]}  Qc4+ {[%clk 0:01:46]} 19. Kf3 {[%clk 0:01:34]}  Ne5+ {[%clk 0:01:42]} 20. Kg3 {[%clk 0:00:58]}  Qxc2 {[%clk 0:01:11]} 21. Kh2 {[%clk 0:00:58]}  b6 {[%clk 0:01:07]} 22. Bf5 {[%clk 0:00:41]}  Qc4 {[%clk 0:01:07]} 23. Rd1 {[%clk 0:00:28]}  Rd8 {[%clk 0:01:03]} 24. Be6 {[%clk 0:00:27]}  Qe4 {[%clk 0:00:56]} 25. Bf5 {[%clk 0:00:25]}  Qa4 {[%clk 0:00:47]} 26. Be6 {[%clk 0:00:22]}  Qe8 {[%clk 0:00:23]} 27. Qf5+ {[%clk 0:00:20]}  Ke7 {[%clk 0:00:22]} 28. f4 {[%clk 0:00:20]}  Qg6 {[%clk 0:00:23]} 29. Qh3 {[%clk 0:00:15]}  Nc4 {[%clk 0:00:24]} 30. f5 {[%clk 0:00:13]}  Be5+ {[%clk 0:00:22]} 31. Kh1 {[%clk 0:00:12]}  Qg3 {[%clk 0:00:22]} 32. f6+ {[%clk 0:00:11]}  Kd6 {[%clk 0:00:22]} 33. Qxg3 {[%clk 0:00:12]}  Bxg3 {[%clk 0:00:21]} 34. Bc1 {[%clk 0:00:08]}  Rdf8 {[%clk 0:00:22]} 35. f7 {[%clk 0:00:08]}  Rh7 {[%clk 0:00:19]} 36. Rf1 {[%clk 0:00:08]}  Ne5 {[%clk 0:00:19]} 37. Rf6 {[%clk 0:00:09]}  Ke7 {[%clk 0:00:19]} 38. Rxh6 {[%clk 0:00:07]}  Rxh6+ {[%clk 0:00:17]} 39. Bxh6 {[%clk 0:00:06]}  Rxf7 {[%clk 0:00:15]} 40. Bg5+ {[%clk 0:00:06]}  Kd6 {[%clk 0:00:15]} 41. Bxf7 {[%clk 0:00:07]}  Nxf7 {[%clk 0:00:15]} 0-1


[Site "https://www.chess.com"]

[Event "Titled Tuesday Blitz January 10 Late 2023"]
[White "Bryakin, Mikhail"]
[Black "Mamedyarov, Shakhriyar"]
[WhiteFideId "4165314"]
[BlackFideId "13401319"]
[WhiteElo "2455"]
[BlackElo "2738"]
[Result "1-0"]
[Round "04"]
[TimeControl "180+2"]
[Date "2023.01.10"]
[WhiteClock "0:00:01"]
[BlackClock "0:00:02"]

1. d4 {[%clk 0:00:00]}  Nf6 {[%clk 0:00:00]} 2. Nc3 {[%clk 0:02:58]}  d5 {[%clk 0:02:48]} 3. Bf4 {[%clk 0:02:58]}  c5 {[%clk 0:02:45]} 4. e4 {[%clk 0:02:56]}  Nxe4 {[%clk 0:02:42]} 5. Nxe4 {[%clk 0:02:55]}  dxe4 {[%clk 0:02:42]} 6. dxc5 {[%clk 0:02:55]}  Qa5+ {[%clk 0:02:43]} 7. c3 {[%clk 0:02:56]}  Qxc5 {[%clk 0:02:42]} 8. Qa4+ {[%clk 0:02:56]}  Nc6 {[%clk 0:02:43]} 9. Qxe4 {[%clk 0:02:57]}  g6 {[%clk 0:02:43]} 10. Nf3 {[%clk 0:02:57]}  Bg7 {[%clk 0:02:43]} 11. Qe3 {[%clk 0:02:57]}  Qxe3+ {[%clk 0:02:42]} 12. Bxe3 {[%clk 0:02:57]}  O-O {[%clk 0:02:29]} 13. O-O-O {[%clk 0:02:58]}  Be6 {[%clk 0:02:29]} 14. Nd4 {[%clk 0:02:53]}  Bxd4 {[%clk 0:02:24]} 15. Bxd4 {[%clk 0:02:45]}  Bxa2 {[%clk 0:02:07]} 16. Bc5 {[%clk 0:02:44]}  Rfd8 {[%clk 0:02:06]} 17. Bb5 {[%clk 0:02:42]}  Kf8 {[%clk 0:02:00]} 18. Bxc6 {[%clk 0:02:37]}  bxc6 {[%clk 0:01:53]} 19. Rxd8+ {[%clk 0:02:33]}  Rxd8 {[%clk 0:01:53]} 20. Rd1 {[%clk 0:02:33]}  Rxd1+ {[%clk 0:01:53]} 21. Kxd1 {[%clk 0:02:34]}  a6 {[%clk 0:01:44]} 22. f4 {[%clk 0:02:35]}  Ke8 {[%clk 0:01:45]} 23. Kd2 {[%clk 0:02:28]}  h5 {[%clk 0:01:45]} 24. h4 {[%clk 0:02:29]}  Kd7 {[%clk 0:01:43]} 25. Ke3 {[%clk 0:02:27]}  Ke6 {[%clk 0:01:43]} 26. g3 {[%clk 0:02:27]}  f6 {[%clk 0:01:42]} 27. Bb4 {[%clk 0:02:27]}  Kd7 {[%clk 0:01:38]} 28. Bc5 {[%clk 0:02:25]}  a5 {[%clk 0:01:25]} 29. Bb6 {[%clk 0:02:24]}  a4 {[%clk 0:01:21]} 30. Bc5 {[%clk 0:02:22]}  e5 {[%clk 0:01:21]} 31. fxe5 {[%clk 0:02:23]}  fxe5 {[%clk 0:01:20]} 32. Ba3 {[%clk 0:02:22]}  Ke6 {[%clk 0:01:21]} 33. Bf8 {[%clk 0:02:18]}  Kd5 {[%clk 0:01:20]} 34. Be7 {[%clk 0:02:10]}  Bb1 {[%clk 0:01:17]} 35. Bf8 {[%clk 0:02:10]}  Kc4 {[%clk 0:01:16]} 36. Bd6 {[%clk 0:02:09]}  Kb3 {[%clk 0:01:16]} 37. Ba3 {[%clk 0:02:09]}  Bf5 {[%clk 0:01:15]} 38. Kd2 {[%clk 0:02:08]}  Be4 {[%clk 0:01:09]} 39. Ke3 {[%clk 0:02:07]}  Bb1 {[%clk 0:01:06]} 40. Kd2 {[%clk 0:02:07]}  Bf5 {[%clk 0:01:05]} 41. Ke3 {[%clk 0:02:07]}  Kc2 {[%clk 0:01:05]} 42. Ke2 {[%clk 0:02:07]}  Bd3+ {[%clk 0:01:05]} 43. Ke3 {[%clk 0:02:06]}  e4 {[%clk 0:01:01]} 44. c4 {[%clk 0:02:06]}  Kb3 {[%clk 0:00:59]} 45. Kd4 {[%clk 0:01:30]}  c5+ {[%clk 0:00:53]} 46. Bxc5 {[%clk 0:01:01]}  Kxb2 {[%clk 0:00:48]} 47. Be7 {[%clk 0:00:08]}  a3 {[%clk 0:00:48]} 48. c5 {[%clk 0:00:06]}  a2 {[%clk 0:00:19]} 49. Ke3 {[%clk 0:00:06]}  a1=Q {[%clk 0:00:18]} 50. Bf6+ {[%clk 0:00:07]}  Kb1 {[%clk 0:00:10]} 51. Bxa1 {[%clk 0:00:08]}  Kxa1 {[%clk 0:00:09]} 52. c6 {[%clk 0:00:08]}  Kb2 {[%clk 0:00:10]} 53. c7 {[%clk 0:00:09]}  Ba6 {[%clk 0:00:05]} 54. Kxe4 {[%clk 0:00:09]}  Bc8 {[%clk 0:00:05]} 55. Kf4 {[%clk 0:00:09]}  Kc3 {[%clk 0:00:06]} 56. Kg5 {[%clk 0:00:06]}  Bf5 {[%clk 0:00:06]} 57. g4 {[%clk 0:00:07]}  hxg4 {[%clk 0:00:05]} 58. h5 {[%clk 0:00:05]}  g3 {[%clk 0:00:04]} 59. hxg6 {[%clk 0:00:05]}  Bc8 {[%clk 0:00:03]} 60. g7 {[%clk 0:00:04]}  g2 {[%clk 0:00:02]} 61. Kh6 {[%clk 0:00:03]}  g1=Q {[%clk 0:00:02]} 62. Kh7 {[%clk 0:00:01]} 1-0


[Site "https://www.chess.com"]

[Event "Titled Tuesday Blitz January 10 Late 2023"]
[White "Talibov, Shiroghlan"]
[Black "Zierk, Steven"]
[WhiteFideId "13429078"]
[BlackFideId "2034255"]
[WhiteElo "2359"]
[BlackElo "2488"]
[Result "1-0"]
[Round "04"]
[TimeControl "180+2"]
[Date "2023.01.10"]
[WhiteClock "0:01:08"]
[BlackClock "0:00:05"]

1. e4 {[%clk 0:00:00]}  e6 {[%clk 0:00:00]} 2. d4 {[%clk 0:03:00]}  d5 {[%clk 0:02:56]} 3. e5 {[%clk 0:02:59]}  c5 {[%clk 0:02:55]} 4. c3 {[%clk 0:02:52]}  Nc6 {[%clk 0:02:55]} 5. Nf3 {[%clk 0:02:52]}  Bd7 {[%clk 0:02:56]} 6. Bd3 {[%clk 0:02:53]}  Qb6 {[%clk 0:02:56]} 7. O-O {[%clk 0:02:52]}  cxd4 {[%clk 0:02:56]} 8. Re1 {[%clk 0:02:52]}  Nge7 {[%clk 0:02:57]} 9. h4 {[%clk 0:02:53]}  dxc3 {[%clk 0:02:47]} 10. bxc3 {[%clk 0:02:53]}  Nf5 {[%clk 0:02:36]} 11. Bxf5 {[%clk 0:02:52]}  exf5 {[%clk 0:02:25]} 12. Nbd2 {[%clk 0:02:40]}  Be7 {[%clk 0:02:26]} 13. Nb3 {[%clk 0:02:25]}  Be6 {[%clk 0:02:15]} 14. Nbd4 {[%clk 0:02:23]}  O-O {[%clk 0:02:08]} 15. Bg5 {[%clk 0:02:18]}  Bxg5 {[%clk 0:02:02]} 16. hxg5 {[%clk 0:02:14]}  Nxd4 {[%clk 0:01:51]} 17. Nxd4 {[%clk 0:02:11]}  Rac8 {[%clk 0:01:44]} 18. Re3 {[%clk 0:02:09]}  f4 {[%clk 0:01:40]} 19. Rd3 {[%clk 0:02:09]}  Rc4 {[%clk 0:01:31]} 20. Qd2 {[%clk 0:02:09]}  Rfc8 {[%clk 0:01:26]} 21. Rc1 {[%clk 0:02:07]}  Qa5 {[%clk 0:01:21]} 22. Rb1 {[%clk 0:02:05]}  b6 {[%clk 0:01:18]} 23. Rb3 {[%clk 0:01:55]}  g6 {[%clk 0:01:05]} 24. Rf3 {[%clk 0:01:55]}  Qc5 {[%clk 0:00:45]} 25. Qxf4 {[%clk 0:01:42]}  Qe7 {[%clk 0:00:37]} 26. Kh2 {[%clk 0:01:39]}  Bd7 {[%clk 0:00:37]} 27. g4 {[%clk 0:01:31]}  Ba4 {[%clk 0:00:34]} 28. Rb4 {[%clk 0:01:29]}  Rxb4 {[%clk 0:00:29]} 29. cxb4 {[%clk 0:01:26]}  Rc4 {[%clk 0:00:26]} 30. e6 {[%clk 0:01:27]}  fxe6 {[%clk 0:00:22]} 31. Qb8+ {[%clk 0:01:25]}  Be8 {[%clk 0:00:20]} 32. Qe5 {[%clk 0:01:21]}  Bd7 {[%clk 0:00:20]} 33. Rf6 {[%clk 0:01:21]}  Qxb4 {[%clk 0:00:19]} 34. Nxe6 {[%clk 0:01:12]}  Rc8 {[%clk 0:00:15]} 35. Rxg6+ {[%clk 0:01:09]}  Kf7 {[%clk 0:00:05]} 36. Qf6+ {[%clk 0:01:08]} 1-0


[Site "https://www.chess.com"]

[Event "Titled Tuesday Blitz January 10 Late 2023"]
[White "Ivic, Velimir"]
[Black "Martins, Bruno Andre Leite"]
[WhiteFideId "950122"]
[BlackFideId "1942255"]
[WhiteElo "2595"]
[BlackElo "2348"]
[Result "1-0"]
[Round "04"]
[TimeControl "180+2"]
[Date "2023.01.10"]
[WhiteClock "0:02:08"]
[BlackClock "0:01:10"]

1. e4 {[%clk 0:00:00]}  e6 {[%clk 0:00:00]} 2. d4 {[%clk 0:03:00]}  d5 {[%clk 0:02:56]} 3. Nc3 {[%clk 0:02:59]}  Nf6 {[%clk 0:02:57]} 4. e5 {[%clk 0:03:00]}  Nfd7 {[%clk 0:02:56]} 5. f4 {[%clk 0:03:00]}  c5 {[%clk 0:02:57]} 6. Nf3 {[%clk 0:03:01]}  Nc6 {[%clk 0:02:58]} 7. Be3 {[%clk 0:03:01]}  a6 {[%clk 0:02:58]} 8. Be2 {[%clk 0:03:02]}  b5 {[%clk 0:02:43]} 9. a3 {[%clk 0:02:50]}  Qb6 {[%clk 0:02:42]} 10. O-O {[%clk 0:02:50]}  Be7 {[%clk 0:02:42]} 11. Na2 {[%clk 0:02:47]}  f5 {[%clk 0:02:40]} 12. exf6 {[%clk 0:02:45]}  Nxf6 {[%clk 0:02:05]} 13. c3 {[%clk 0:02:34]}  O-O {[%clk 0:01:59]} 14. Kh1 {[%clk 0:02:26]}  Bd7 {[%clk 0:01:58]} 15. Nc1 {[%clk 0:02:20]}  Rae8 {[%clk 0:01:48]} 16. Nd3 {[%clk 0:02:19]}  c4 {[%clk 0:01:43]} 17. Nde5 {[%clk 0:02:17]}  Nxe5 {[%clk 0:01:33]} 18. Nxe5 {[%clk 0:02:17]}  Rd8 {[%clk 0:01:29]} 19. Bf3 {[%clk 0:02:18]}  Ne4 {[%clk 0:01:18]} 20. Qe2 {[%clk 0:02:11]}  Bc6 {[%clk 0:01:10]} 21. Bxe4 {[%clk 0:02:08]} 1-0


[Site "https://www.chess.com"]

[Event "Titled Tuesday Blitz January 10 Late 2023"]
[White "Baskakov, Egor"]
[Black "Hansen, Torbjorn Ringdal"]
[WhiteFideId "24197866"]
[BlackFideId "1501720"]
[WhiteElo "2215"]
[BlackElo "2432"]
[Result "1-0"]
[Round "04"]
[TimeControl "180+2"]
[Date "2023.01.10"]
[WhiteClock "0:00:08"]
[BlackClock "0:00:05"]

1. e4 {[%clk 0:00:00]}  c6 {[%clk 0:00:00]} 2. d4 {[%clk 0:03:00]}  d5 {[%clk 0:03:00]} 3. e5 {[%clk 0:03:00]}  c5 {[%clk 0:03:00]} 4. c4 {[%clk 0:03:01]}  cxd4 {[%clk 0:03:00]} 5. Nf3 {[%clk 0:03:01]}  Bg4 {[%clk 0:02:57]} 6. Qxd4 {[%clk 0:03:01]}  Bxf3 {[%clk 0:02:56]} 7. gxf3 {[%clk 0:03:00]}  e6 {[%clk 0:02:52]} 8. cxd5 {[%clk 0:03:01]}  exd5 {[%clk 0:02:46]} 9. Nc3 {[%clk 0:03:01]}  Ne7 {[%clk 0:02:46]} 10. Bb5+ {[%clk 0:03:01]}  Nbc6 {[%clk 0:02:44]} 11. Bg5 {[%clk 0:02:59]}  a6 {[%clk 0:02:43]} 12. Bxc6+ {[%clk 0:02:46]}  Nxc6 {[%clk 0:02:30]} 13. Qf4 {[%clk 0:02:44]}  Be7 {[%clk 0:02:30]} 14. Rg1 {[%clk 0:02:29]}  Bxg5 {[%clk 0:02:16]} 15. Rxg5 {[%clk 0:02:18]}  g6 {[%clk 0:02:05]} 16. O-O-O {[%clk 0:02:19]}  Rc8 {[%clk 0:02:06]} 17. Kb1 {[%clk 0:02:11]}  Ne7 {[%clk 0:02:00]} 18. e6 {[%clk 0:02:09]}  O-O {[%clk 0:01:56]} 19. Nxd5 {[%clk 0:01:49]}  Nxd5 {[%clk 0:01:48]} 20. Rgxd5 {[%clk 0:01:35]}  Qe7 {[%clk 0:01:39]} 21. exf7+ {[%clk 0:01:36]}  Qxf7 {[%clk 0:01:33]} 22. Qb4 {[%clk 0:01:35]}  Qxf3 {[%clk 0:01:24]} 23. Qxb7 {[%clk 0:01:12]}  Qxf2 {[%clk 0:01:06]} 24. R5d2 {[%clk 0:01:07]}  Qf5+ {[%clk 0:01:02]} 25. Ka1 {[%clk 0:01:00]}  a5 {[%clk 0:01:01]} 26. a3 {[%clk 0:00:58]}  a4 {[%clk 0:00:57]} 27. Qb4 {[%clk 0:00:56]}  Rc2 {[%clk 0:00:57]} 28. Qxa4 {[%clk 0:00:55]}  Rxd2 {[%clk 0:00:48]} 29. Rxd2 {[%clk 0:00:49]}  Qf1+ {[%clk 0:00:48]} 30. Ka2 {[%clk 0:00:50]}  Rb8 {[%clk 0:00:45]} 31. Qe4 {[%clk 0:00:50]}  Qf7+ {[%clk 0:00:43]} 32. Qd5 {[%clk 0:00:43]}  h5 {[%clk 0:00:37]} 33. b4 {[%clk 0:00:43]}  g5 {[%clk 0:00:37]} 34. Qxf7+ {[%clk 0:00:42]}  Kxf7 {[%clk 0:00:34]} 35. Kb3 {[%clk 0:00:38]}  g4 {[%clk 0:00:33]} 36. a4 {[%clk 0:00:39]}  h4 {[%clk 0:00:33]} 37. b5 {[%clk 0:00:40]}  g3 {[%clk 0:00:31]} 38. hxg3 {[%clk 0:00:40]}  hxg3 {[%clk 0:00:30]} 39. Kb4 {[%clk 0:00:41]}  Rg8 {[%clk 0:00:30]} 40. Rg2 {[%clk 0:00:41]}  Ke6 {[%clk 0:00:25]} 41. a5 {[%clk 0:00:41]}  Kd6 {[%clk 0:00:25]} 42. a6 {[%clk 0:00:40]}  Kc7 {[%clk 0:00:26]} 43. Ka5 {[%clk 0:00:40]}  Rg5 {[%clk 0:00:25]} 44. Rc2+ {[%clk 0:00:40]}  Kb8 {[%clk 0:00:24]} 45. Kb6 {[%clk 0:00:37]}  Rg6+ {[%clk 0:00:22]} 46. Ka5 {[%clk 0:00:35]}  g2 {[%clk 0:00:22]} 47. b6 {[%clk 0:00:13]}  Rg8 {[%clk 0:00:22]} 48. a7+ {[%clk 0:00:13]}  Kb7 {[%clk 0:00:11]} 49. Rc7+ {[%clk 0:00:11]}  Ka8 {[%clk 0:00:07]} 50. Ka6 {[%clk 0:00:11]}  Rb8 {[%clk 0:00:07]} 51. axb8=Q+ {[%clk 0:00:10]}  Kxb8 {[%clk 0:00:05]} 52. Rg7 {[%clk 0:00:08]} 1-0


[Site "https://www.chess.com"]

[Event "Titled Tuesday Blitz January 10 Late 2023"]
[White "Deac, Bogdan-Daniel"]
[Black "Gorodetzky, David"]
[WhiteFideId "1226380"]
[BlackFideId "2813416"]
[WhiteElo "2700"]
[BlackElo "2485"]
[Result "1-0"]
[Round "04"]
[TimeControl "180+2"]
[Date "2023.01.10"]
[WhiteClock "0:01:42"]
[BlackClock "0:01:13"]

1. c4 {[%clk 0:00:00]}  Nf6 {[%clk 0:00:00]} 2. g3 {[%clk 0:03:00]}  c6 {[%clk 0:02:58]} 3. Nf3 {[%clk 0:03:00]}  d5 {[%clk 0:02:51]} 4. d4 {[%clk 0:02:58]}  Bf5 {[%clk 0:02:51]} 5. Nc3 {[%clk 0:02:58]}  e6 {[%clk 0:02:48]} 6. Nh4 {[%clk 0:02:57]}  Be4 {[%clk 0:02:48]} 7. f3 {[%clk 0:02:57]}  Bg6 {[%clk 0:02:41]} 8. Qb3 {[%clk 0:02:57]}  Qb6 {[%clk 0:02:41]} 9. c5 {[%clk 0:02:57]}  Qc7 {[%clk 0:02:29]} 10. Bf4 {[%clk 0:02:56]}  Qc8 {[%clk 0:02:27]} 11. e4 {[%clk 0:02:54]}  dxe4 {[%clk 0:02:27]} 12. Nxg6 {[%clk 0:02:54]}  hxg6 {[%clk 0:02:27]} 13. fxe4 {[%clk 0:02:51]}  Nh5 {[%clk 0:02:28]} 14. O-O-O {[%clk 0:02:50]}  Nxf4 {[%clk 0:02:28]} 15. gxf4 {[%clk 0:02:34]}  Rh4 {[%clk 0:02:24]} 16. f5 {[%clk 0:02:35]}  exf5 {[%clk 0:02:15]} 17. Bc4 {[%clk 0:02:28]}  Qc7 {[%clk 0:01:32]} 18. exf5 {[%clk 0:02:21]}  Qf4+ {[%clk 0:01:32]} 19. Kb1 {[%clk 0:02:17]}  Qxf5+ {[%clk 0:01:18]} 20. Ka1 {[%clk 0:02:16]}  b5 {[%clk 0:01:18]} 21. Nxb5 {[%clk 0:02:12]}  cxb5 {[%clk 0:01:13]} 22. Bd5 {[%clk 0:01:42]} 1-0


[Site "https://www.chess.com"]

[Event "Titled Tuesday Blitz January 10 Late 2023"]
[White "Chigaev, Maksim"]
[Black "Rustemov, Alexander"]
[WhiteFideId "4108116"]
[BlackFideId "4119002"]
[WhiteElo "2628"]
[BlackElo "2525"]
[Result "1/2-1/2"]
[Round "04"]
[TimeControl "180+2"]
[Date "2023.01.10"]
[WhiteClock "0:00:29"]
[BlackClock "0:01:30"]

1. e4 {[%clk 0:00:00]}  e6 {[%clk 0:00:00]} 2. d4 {[%clk 0:03:00]}  d5 {[%clk 0:02:59]} 3. Nd2 {[%clk 0:03:01]}  dxe4 {[%clk 0:02:59]} 4. Nxe4 {[%clk 0:03:02]}  Bd7 {[%clk 0:03:00]} 5. Nf3 {[%clk 0:03:02]}  Bc6 {[%clk 0:03:00]} 6. Bd3 {[%clk 0:03:02]}  Nd7 {[%clk 0:03:01]} 7. O-O {[%clk 0:03:02]}  Ngf6 {[%clk 0:03:01]} 8. Ng3 {[%clk 0:03:01]}  Be7 {[%clk 0:03:02]} 9. b3 {[%clk 0:03:01]}  b5 {[%clk 0:03:02]} 10. a3 {[%clk 0:02:55]}  a5 {[%clk 0:03:00]} 11. Re1 {[%clk 0:02:42]}  b4 {[%clk 0:03:00]} 12. Ne5 {[%clk 0:02:28]}  Nxe5 {[%clk 0:02:57]} 13. dxe5 {[%clk 0:02:25]}  Qd5 {[%clk 0:02:43]} 14. Bf1 {[%clk 0:02:26]}  Qxd1 {[%clk 0:02:40]} 15. Rxd1 {[%clk 0:02:07]}  Nd5 {[%clk 0:02:39]} 16. axb4 {[%clk 0:02:08]}  axb4 {[%clk 0:02:30]} 17. Rxa8+ {[%clk 0:01:55]}  Bxa8 {[%clk 0:02:29]} 18. Bb5+ {[%clk 0:01:55]}  c6 {[%clk 0:02:30]} 19. Bc4 {[%clk 0:01:55]}  Kd7 {[%clk 0:02:22]} 20. Ne4 {[%clk 0:01:56]}  Kc7 {[%clk 0:02:18]} 21. Bg5 {[%clk 0:01:51]}  Bf8 {[%clk 0:02:13]} 22. Ra1 {[%clk 0:01:45]}  Bb7 {[%clk 0:02:09]} 23. h3 {[%clk 0:01:40]}  h6 {[%clk 0:02:08]} 24. Bd2 {[%clk 0:01:30]}  Be7 {[%clk 0:02:08]} 25. Ra7 {[%clk 0:01:31]}  Ra8 {[%clk 0:02:07]} 26. Rxa8 {[%clk 0:01:12]}  Bxa8 {[%clk 0:02:02]} 27. f4 {[%clk 0:01:11]}  c5 {[%clk 0:02:03]} 28. Bd3 {[%clk 0:01:10]}  h5 {[%clk 0:02:00]} 29. g4 {[%clk 0:01:10]}  hxg4 {[%clk 0:01:50]} 30. hxg4 {[%clk 0:00:58]}  g6 {[%clk 0:01:49]} 31. Kf2 {[%clk 0:00:59]}  Nb6 {[%clk 0:01:50]} 32. Be3 {[%clk 0:00:57]}  Kc6 {[%clk 0:01:46]} 33. Nd2 {[%clk 0:00:49]}  Kd7 {[%clk 0:01:42]} 34. Nc4 {[%clk 0:00:41]}  Nxc4 {[%clk 0:01:31]} 35. Bxc4 {[%clk 0:00:29]}  Be4 {[%clk 0:01:30]} 36. Bd3 {[%clk 0:00:29]} 1/2-1/2


[Site "https://www.chess.com"]

[Event "Titled Tuesday Blitz January 10 Late 2023"]
[White "Riehle, Marco"]
[Black "Bluebaum, Matthias"]
[WhiteFideId "12904392"]
[BlackFideId "24651516"]
[WhiteElo "2368"]
[BlackElo "2669"]
[Result "1-0"]
[Round "04"]
[TimeControl "180+2"]
[Date "2023.01.10"]
[WhiteClock "0:01:22"]
[BlackClock "0:00:08"]

1. e4 {[%clk 0:00:00]}  e6 {[%clk 0:00:00]} 2. c4 {[%clk 0:02:59]}  d5 {[%clk 0:03:00]} 3. cxd5 {[%clk 0:03:00]}  exd5 {[%clk 0:03:01]} 4. Qb3 {[%clk 0:03:01]}  dxe4 {[%clk 0:03:02]} 5. Bc4 {[%clk 0:03:01]}  Qd7 {[%clk 0:03:02]} 6. Nh3 {[%clk 0:03:02]}  Nc6 {[%clk 0:03:01]} 7. Ng5 {[%clk 0:03:01]}  Nd4 {[%clk 0:03:00]} 8. Bxf7+ {[%clk 0:03:02]}  Kd8 {[%clk 0:02:58]} 9. Qd1 {[%clk 0:02:58]}  h6 {[%clk 0:02:57]} 10. Bxg8 {[%clk 0:02:54]}  hxg5 {[%clk 0:02:41]} 11. Bc4 {[%clk 0:02:53]}  Qg4 {[%clk 0:02:41]} 12. Qxg4 {[%clk 0:02:52]}  Bxg4 {[%clk 0:02:31]} 13. Bb3 {[%clk 0:02:40]}  Be2 {[%clk 0:02:32]} 14. d3 {[%clk 0:02:40]}  Bxd3 {[%clk 0:02:15]} 15. Bxg5+ {[%clk 0:02:32]}  Be7 {[%clk 0:02:04]} 16. Bxe7+ {[%clk 0:02:32]}  Kxe7 {[%clk 0:02:05]} 17. Nc3 {[%clk 0:02:32]}  c6 {[%clk 0:02:06]} 18. O-O-O {[%clk 0:02:28]}  Rad8 {[%clk 0:02:03]} 19. Nxe4 {[%clk 0:02:22]}  Ne2+ {[%clk 0:01:50]} 20. Kd2 {[%clk 0:02:13]}  Bxe4+ {[%clk 0:01:27]} 21. Kxe2 {[%clk 0:02:13]}  Rxd1 {[%clk 0:01:28]} 22. Rxd1 {[%clk 0:02:13]}  Bxg2 {[%clk 0:01:19]} 23. Rd4 {[%clk 0:02:08]}  Rxh2 {[%clk 0:01:19]} 24. Rg4 {[%clk 0:02:02]}  Kf6 {[%clk 0:01:15]} 25. Rf4+ {[%clk 0:02:03]}  Kg6 {[%clk 0:01:14]} 26. Bc2+ {[%clk 0:02:03]}  Kh6 {[%clk 0:01:03]} 27. Rf8 {[%clk 0:02:02]}  Rh1 {[%clk 0:00:41]} 28. f4 {[%clk 0:01:58]}  g5 {[%clk 0:00:40]} 29. fxg5+ {[%clk 0:01:52]}  Kg7 {[%clk 0:00:26]} 30. Rd8 {[%clk 0:01:38]}  Bh3 {[%clk 0:00:26]} 31. Rb8 {[%clk 0:01:38]}  Rh2+ {[%clk 0:00:21]} 32. Kd1 {[%clk 0:01:35]}  Bg4+ {[%clk 0:00:21]} 33. Kc1 {[%clk 0:01:35]}  Rh1+ {[%clk 0:00:18]} 34. Kd2 {[%clk 0:01:36]}  Rh2+ {[%clk 0:00:17]} 35. Kc3 {[%clk 0:01:36]}  Kf7 {[%clk 0:00:18]} 36. g6+ {[%clk 0:01:36]}  Kf6 {[%clk 0:00:11]} 37. Rf8+ {[%clk 0:01:27]}  Kg7 {[%clk 0:00:11]} 38. Rf7+ {[%clk 0:01:27]}  Kg8 {[%clk 0:00:06]} 39. Bb3 {[%clk 0:01:27]}  Rh3+ {[%clk 0:00:07]} 40. Kd4 {[%clk 0:01:22]}  Rh5 {[%clk 0:00:08]} 41. Rxb7+ {[%clk 0:01:22]} 1-0


[Site "https://www.chess.com"]

[Event "Titled Tuesday Blitz January 10 Late 2023"]
[White "Papasimakopoulos, Alexandros"]
[Black "Remizov, Yaroslav"]
[WhiteFideId "4244125"]
[BlackFideId "34134015"]
[WhiteElo "2401"]
[BlackElo "2421"]
[Result "1-0"]
[Round "04"]
[TimeControl "180+2"]
[Date "2023.01.10"]
[WhiteClock "0:00:26"]
[BlackClock "0:00:03"]

1. d4 {[%clk 0:00:00]}  d5 {[%clk 0:00:00]} 2. c4 {[%clk 0:02:56]}  e6 {[%clk 0:02:58]} 3. Nc3 {[%clk 0:02:56]}  c6 {[%clk 0:02:59]} 4. e3 {[%clk 0:02:56]}  Nf6 {[%clk 0:02:59]} 5. Nf3 {[%clk 0:02:55]}  Nbd7 {[%clk 0:02:59]} 6. Be2 {[%clk 0:02:55]}  Bd6 {[%clk 0:02:59]} 7. O-O {[%clk 0:02:51]}  O-O {[%clk 0:02:52]} 8. b3 {[%clk 0:02:50]}  b6 {[%clk 0:02:52]} 9. Bb2 {[%clk 0:02:48]}  Bb7 {[%clk 0:02:51]} 10. Rc1 {[%clk 0:02:48]}  Rc8 {[%clk 0:02:52]} 11. Qd3 {[%clk 0:02:48]}  Qe7 {[%clk 0:02:51]} 12. e4 {[%clk 0:02:27]}  dxe4 {[%clk 0:02:41]} 13. Nxe4 {[%clk 0:02:22]}  Nxe4 {[%clk 0:02:39]} 14. Qxe4 {[%clk 0:02:23]}  Nf6 {[%clk 0:02:40]} 15. Qh4 {[%clk 0:02:23]}  c5 {[%clk 0:02:41]} 16. Rcd1 {[%clk 0:02:20]}  h6 {[%clk 0:02:41]} 17. Rfe1 {[%clk 0:02:10]}  Rfd8 {[%clk 0:02:35]} 18. d5 {[%clk 0:02:04]}  exd5 {[%clk 0:02:34]} 19. Bd3 {[%clk 0:01:56]}  Ne4 {[%clk 0:02:20]} 20. Qg4 {[%clk 0:01:56]}  f5 {[%clk 0:02:20]} 21. Qxf5 {[%clk 0:01:37]}  Rf8 {[%clk 0:01:45]} 22. Qg6 {[%clk 0:01:30]}  Rc6 {[%clk 0:01:45]} 23. Qh5 {[%clk 0:01:29]}  Rxf3 {[%clk 0:01:30]} 24. Qxf3 {[%clk 0:01:16]}  Ng5 {[%clk 0:00:37]} 25. Qxd5+ {[%clk 0:01:00]}  Qf7 {[%clk 0:00:06]} 26. Re8+ {[%clk 0:00:53]}  Bf8 {[%clk 0:00:06]} 27. h4 {[%clk 0:00:47]}  Ne6 {[%clk 0:00:06]} 28. Rb8 {[%clk 0:00:34]}  Rc7 {[%clk 0:00:03]} 29. Qf5 {[%clk 0:00:29]}  Rd7 {[%clk 0:00:03]} 30. Qh7# {[%clk 0:00:26]} 1-0


[Site "https://www.chess.com"]